[Event "Polofinale MCR junioru 2023"]
[Site "Czech Republic"]
[Date "2023.11.17"]
[Round "8.14"]
[White "Simunek, Jakub Simon"]
[Black "Lang, Simon"]
[Result "0-1"]
[TimeControl "90 min per 40 moves + 15 min + 30 sec / move from move 1"]
[WhiteFideId "23709464"]
[BlackFideId "23712449"]
[WhiteElo "1970"]
[BlackElo "2090"]

1. e4 {[%clk 01:28:48]} {[%emt 00:02:12]} c5 {[%clk 01:30:16]} {[%emt
00:00:45]} 2. Nf3 {[%clk 01:28:41]} {[%emt 00:00:37]} d6 {[%clk 01:30:05]}
{[%emt 00:00:41]} 3. Bb5+ {[%clk 01:29:08]} {[%emt 00:00:03]} Nd7 {[%clk
01:30:06]} {[%emt 00:00:29]} 4. c3 {[%clk 01:29:26]} {[%emt 00:00:12]} Ngf6
{[%clk 01:29:09]} {[%emt 00:01:26]} 5. Qe2 {[%clk 01:29:49]} {[%emt 00:00:07]}
a6 {[%clk 01:28:57]} {[%emt 00:00:43]} 6. Ba4 {[%clk 01:30:14]} {[%emt
00:00:05]} b5 {[%clk 01:29:15]} {[%emt 00:00:11]} 7. Bc2 {[%clk 01:30:43]}
{[%emt 00:00:01]} Bb7 {[%clk 01:29:18]} {[%emt 00:00:28]} 8. d4 {[%clk
01:30:43]} {[%emt 00:00:30]} e6 {[%clk 01:28:35]} {[%emt 00:01:13]} 9. O-O
{[%clk 01:30:11]} {[%emt 00:01:02]} Be7 {[%clk 01:26:45]} {[%emt 00:02:19]} 10.
Re1 {[%clk 01:29:01]} {[%emt 00:01:40]} O-O {[%clk 01:24:49]} {[%emt 00:02:26]}
11. Nbd2 {[%clk 01:28:39]} {[%emt 00:00:52]} Qc7 {[%clk 01:24:08]} {[%emt
00:01:11]} 12. Bd3 {[%clk 01:25:09]} {[%emt 00:04:01]} Rfe8 {[%clk 01:18:51]}
{[%emt 00:05:47]} 13. Nf1 {[%clk 01:20:12]} {[%emt 00:05:26]} Nf8 {[%clk
01:12:27]} {[%emt 00:06:54]} 14. Ng3 {[%clk 01:17:37]} {[%emt 00:03:06]} Bc6
{[%clk 01:10:04]} {[%emt 00:02:53]} 15. e5 {[%clk 01:09:08]} {[%emt 00:08:58]}
Nd5 {[%clk 01:08:46]} {[%emt 00:01:48]} 16. Ne4 {[%clk 01:09:03]} {[%emt
00:00:35]} dxe5 {[%clk 01:04:15]} {[%emt 00:05:01]} 17. Nxe5 {[%clk 01:07:09]}
{[%emt 00:02:24]} cxd4 {[%clk 01:02:53]} {[%emt 00:01:52]} 18. cxd4 {[%clk
01:06:57]} {[%emt 00:00:42]} Bb7 {[%clk 01:02:00]} {[%emt 00:01:24]} 19. a3
{[%clk 00:50:53]} {[%emt 00:16:35]} Ng6 {[%clk 00:56:25]} {[%emt 00:06:03]} 20.
Nxg6 {[%clk 00:41:25]} {[%emt 00:09:58]} hxg6 {[%clk 00:55:26]} {[%emt
00:01:30]} 21. Qg4 {[%clk 00:36:43]} {[%emt 00:05:13]} Nf6 {[%clk 00:50:41]}
{[%emt 00:05:14]} 22. Nxf6+ {[%clk 00:37:05]} {[%emt 00:00:09]} Bxf6 {[%clk
00:51:05]} {[%emt 00:00:05]} 23. h4 {[%clk 00:37:28]} {[%emt 00:00:07]} Rad8
{[%clk 00:49:57]} {[%emt 00:01:39]} 24. Be3 {[%clk 00:36:29]} {[%emt 00:01:28]}
Rd5 {[%clk 00:46:53]} {[%emt 00:03:35]} 25. Rac1 {[%clk 00:28:41]} {[%emt
00:08:18]} Qd7 {[%clk 00:43:49]} {[%emt 00:03:33]} 26. Be4 {[%clk 00:27:33]}
{[%emt 00:01:38]} Rh5 {[%clk 00:38:52]} {[%emt 00:05:27]} 27. g3 {[%clk
00:27:27]} {[%emt 00:00:36]} Bxe4 {[%clk 00:37:59]} {[%emt 00:01:24]} 28. Qxe4
{[%clk 00:27:54]} {[%emt 00:00:02]} Rd5 {[%clk 00:38:08]} {[%emt 00:00:21]} 29.
Rc5 {[%clk 00:27:02]} {[%emt 00:01:23]} Rd8 {[%clk 00:37:39]} {[%emt 00:00:59]}
30. Rec1 {[%clk 00:26:04]} {[%emt 00:01:28]} Rxc5 {[%clk 00:25:45]} {[%emt
00:12:24]} 31. Rxc5 {[%clk 00:07:10]} {[%emt 00:19:24]} Bxd4 {[%clk 00:25:25]}
{[%emt 00:00:50]} 32. Bxd4 {[%clk 00:07:37]} {[%emt 00:00:02]} Qxd4 {[%clk
00:25:46]} {[%emt 00:00:09]} 33. Qxd4 {[%clk 00:08:04]} {[%emt 00:00:03]} Rxd4
{[%clk 00:26:09]} {[%emt 00:00:07]} 34. Rc6 {[%clk 00:08:29]} {[%emt 00:00:05]}
a5 {[%clk 00:26:03]} {[%emt 00:00:36]} 35. Ra6 {[%clk 00:08:05]} {[%emt
00:00:55]} a4 {[%clk 00:26:17]} {[%emt 00:00:16]} 36. Rb6 {[%clk 00:08:29]}
{[%emt 00:00:05]} Rd5 {[%clk 00:26:43]} {[%emt 00:00:04]} 37. Rb7 {[%clk
00:08:43]} {[%emt 00:00:17]} g5 {[%clk 00:24:14]} {[%emt 00:02:58]} 38. hxg5
{[%clk 00:09:06]} {[%emt 00:00:08]} Rxg5 {[%clk 00:24:39]} {[%emt 00:00:04]} 39.
Kf1 {[%clk 00:09:28]} {[%emt 00:00:08]} Re5 {[%clk 00:24:52]} {[%emt 00:00:17]}
40. Kg2 {[%clk 00:08:44]} {[%emt 00:01:14]} Rd5 {[%clk 00:22:09]} {[%emt
00:03:13]} 41. Kf3 {[%clk 00:08:08]} {[%emt 00:01:07]} Rd3+ {[%clk 00:21:57]}
{[%emt 00:00:42]} 0-1

[Event "Polofinale MCR junioru 2023"]
[Site "Czech Republic"]
[Date "2023.11.17"]
[Round "8.15"]
[White "Mach, Petr"]
[Black "Vylicil, Adam"]
[Result "1/2-1/2"]
[TimeControl "90 min per 40 moves + 15 min + 30 sec / move from move 1"]
[WhiteFideId "383546"]
[BlackFideId "23717556"]
[WhiteElo "2084"]
[BlackElo "1896"]

1. Nf3 {[%clk 01:30:58]} {[%emt 00:00:01]} d5 {[%clk 01:30:53]} {[%emt
00:00:06]} 2. g3 {[%clk 01:31:26]} {[%emt 00:00:03]} g6 {[%clk 01:31:19]}
{[%emt 00:00:04]} 3. Bg2 {[%clk 01:31:53]} {[%emt 00:00:02]} Bg7 {[%clk
01:31:47]} {[%emt 00:00:04]} 4. d4 {[%clk 01:32:20]} {[%emt 00:00:03]} Nh6
{[%clk 01:32:07]} {[%emt 00:00:10]} 5. c4 {[%clk 01:29:32]} {[%emt 00:03:18]}
dxc4 {[%clk 01:32:16]} {[%emt 00:00:21]} 6. O-O {[%clk 01:27:48]} {[%emt
00:02:13]} Nf5 {[%clk 01:32:08]} {[%emt 00:00:38]} 7. d5 {[%clk 01:27:23]}
{[%emt 00:00:55]} Nd6 {[%clk 01:26:20]} {[%emt 00:06:18]} 8. Nc3 {[%clk
01:27:27]} {[%emt 00:00:25]} O-O {[%clk 01:24:52]} {[%emt 00:01:59]} 9. e4
{[%clk 01:27:54]} {[%emt 00:00:04]} Bg4 {[%clk 01:17:56]} {[%emt 00:07:25]} 10.
Bf4 {[%clk 01:24:55]} {[%emt 00:03:29]} Nd7 {[%clk 01:15:33]} {[%emt 00:02:52]}
11. Re1 {[%clk 01:14:18]} {[%emt 00:11:07]} Ne5 {[%clk 01:12:37]} {[%emt
00:03:27]} 12. Bxe5 {[%clk 01:14:25]} {[%emt 00:00:24]} 1/2-1/2

[Event "Polofinale MCR junioru 2023"]
[Site "Czech Republic"]
[Date "2023.11.17"]
[Round "8.16"]
[White "Kulhanek, Jachym"]
[Black "Steinbauer, Sebastian"]
[Result "1/2-1/2"]
[TimeControl "90 min per 40 moves + 15 min + 30 sec / move from move 1"]
[WhiteFideId "23716193"]
[BlackFideId "399272"]
[WhiteElo "2056"]
[BlackElo "1869"]

1. e4 {[%clk 01:30:57]} {[%emt 00:00:02]} e5 {[%clk 01:26:45]} {[%emt
00:04:16]} 2. Nf3 {[%clk 01:31:21]} {[%emt 00:00:06]} Nf6 {[%clk 01:27:07]}
{[%emt 00:00:09]} 3. d3 {[%clk 01:31:45]} {[%emt 00:00:05]} Nc6 {[%clk
01:27:19]} {[%emt 00:00:19]} 4. g3 {[%clk 01:32:02]} {[%emt 00:00:13]} Bc5
{[%clk 01:27:17]} {[%emt 00:00:32]} 5. Bg2 {[%clk 01:32:24]} {[%emt 00:00:07]}
d6 {[%clk 01:27:40]} {[%emt 00:00:08]} 6. O-O {[%clk 01:32:48]} {[%emt
00:00:06]} Bg4 {[%clk 01:28:04]} {[%emt 00:00:06]} 7. h3 {[%clk 01:33:00]}
{[%emt 00:00:17]} Bh5 {[%clk 01:28:26]} {[%emt 00:00:08]} 8. Be3 {[%clk
01:33:27]} {[%emt 00:00:03]} Bb6 {[%clk 01:28:28]} {[%emt 00:00:29]} 9. a4
{[%clk 01:31:53]} {[%emt 00:02:03]} Qd7 {[%clk 01:27:00]} {[%emt 00:01:58]} 10.
Nbd2 {[%clk 01:30:03]} {[%emt 00:02:20]} h6 {[%clk 01:25:33]} {[%emt 00:01:57]}
11. Qe1 {[%clk 01:18:23]} {[%emt 00:12:10]} O-O {[%clk 01:22:17]} {[%emt
00:03:45]} 12. c3 {[%clk 01:11:47]} {[%emt 00:07:07]} Rfe8 {[%clk 01:22:29]}
{[%emt 00:00:19]} 13. Nh4 {[%clk 01:01:13]} {[%emt 00:11:03]} d5 {[%clk
01:20:40]} {[%emt 00:02:20]} 14. Nb3 {[%clk 00:49:36]} {[%emt 00:12:07]} d4
{[%clk 01:20:02]} {[%emt 00:01:08]} 15. cxd4 {[%clk 00:43:57]} {[%emt
00:06:09]} Nxd4 {[%clk 01:13:04]} {[%emt 00:07:27]} 16. Bxd4 {[%clk 00:44:22]}
{[%emt 00:00:05]} Bxd4 {[%clk 01:13:26]} {[%emt 00:00:09]} 17. Nxd4 {[%clk
00:44:47]} {[%emt 00:00:05]} Qxd4 {[%clk 01:13:46]} {[%emt 00:00:10]} 18. g4
{[%clk 00:45:09]} {[%emt 00:00:08]} Bg6 {[%clk 01:13:56]} {[%emt 00:00:20]} 19.
Qc3 {[%clk 00:41:43]} {[%emt 00:03:57]} c5 {[%clk 01:13:31]} {[%emt 00:00:55]}
20. Qxd4 {[%clk 00:39:43]} {[%emt 00:02:30]} cxd4 {[%clk 01:11:59]} {[%emt
00:02:02]} 21. f4 {[%clk 00:32:42]} {[%emt 00:07:31]} Nd7 {[%clk 01:11:43]}
{[%emt 00:00:46]} 22. fxe5 {[%clk 00:29:12]} {[%emt 00:04:00]} Nxe5 {[%clk
01:11:47]} {[%emt 00:00:26]} 23. Ra3 {[%clk 00:28:46]} {[%emt 00:00:56]} Rac8
{[%clk 01:10:51]} {[%emt 00:01:25]} 24. Nf3 {[%clk 00:28:16]} {[%emt 00:01:00]}
f6 {[%clk 01:08:06]} {[%emt 00:03:17]} 25. Nxd4 {[%clk 00:26:07]} {[%emt
00:02:38]} Red8 {[%clk 01:04:28]} {[%emt 00:04:08]} 26. Nf5 {[%clk 00:26:06]}
{[%emt 00:00:31]} Bxf5 {[%clk 01:04:38]} {[%emt 00:00:19]} 27. exf5 {[%clk
00:26:16]} {[%emt 00:00:20]} Nxd3 {[%clk 01:03:48]} {[%emt 00:01:21]} 28. Bxb7
{[%clk 00:25:21]} {[%emt 00:01:24]} Rb8 {[%clk 01:03:44]} {[%emt 00:00:34]} 29.
Ba6 {[%clk 00:22:21]} {[%emt 00:03:30]} Nxb2 {[%clk 01:03:19]} {[%emt
00:00:55]} 30. Rb1 {[%clk 00:19:40]} {[%emt 00:03:10]} Rb6 {[%clk 01:03:27]}
{[%emt 00:00:22]} 31. Bb5 {[%clk 00:19:27]} {[%emt 00:00:42]} Rd1+ {[%clk
01:01:00]} {[%emt 00:02:57]} 32. Rxd1 {[%clk 00:19:43]} {[%emt 00:00:14]} Nxd1
{[%clk 01:01:27]} {[%emt 00:00:04]} 33. Rb3 {[%clk 00:11:57]} {[%emt 00:08:16]}
Kh7 {[%clk 01:00:30]} {[%emt 00:01:27]} 34. Rd3 {[%clk 00:10:24]} {[%emt
00:02:03]} Nb2 {[%clk 00:59:10]} {[%emt 00:01:51]} 35. Rd8 {[%clk 00:09:19]}
{[%emt 00:01:34]} h5 {[%clk 00:59:03]} {[%emt 00:00:37]} 36. h4 {[%clk
00:08:19]} {[%emt 00:01:30]} hxg4 {[%clk 00:57:10]} {[%emt 00:02:23]} 37. Be8
{[%clk 00:07:44]} {[%emt 00:01:05]} g5 {[%clk 00:57:29]} {[%emt 00:00:11]} 38.
Rd7+ {[%clk 00:04:11]} {[%emt 00:04:03]} Kh8 {[%clk 00:57:00]} {[%emt
00:00:59]} 39. h5 {[%clk 00:03:41]} {[%emt 00:01:00]} Rb8 {[%clk 00:56:23]}
{[%emt 00:01:07]} 40. Bg6 {[%clk 00:02:11]} {[%emt 00:02:00]} Nxa4 {[%clk
00:56:14]} {[%emt 00:00:40]} 41. Rxa7 {[%clk 00:02:02]} {[%emt 00:00:39]} Nc3
{[%clk 00:56:26]} {[%emt 00:00:17]} 42. Kf2 {[%clk 00:08:13]} {[%emt 00:09:19]}
Nd5 {[%clk 01:07:40]} {[%emt 00:04:16]} 43. Rf7 {[%clk 00:04:41]} {[%emt
00:04:07]} 1/2-1/2

[Event "Polofinale MCR junioru 2023"]
[Site "Czech Republic"]
[Date "2023.11.17"]
[Round "8.17"]
[White "Stocek, Martin"]
[Black "Svadlenka, Michal"]
[Result "1-0"]
[TimeControl "90 min per 40 moves + 15 min + 30 sec / move from move 1"]
[WhiteFideId "380121"]
[BlackFideId "23717068"]
[WhiteElo "2125"]
[BlackElo "1689"]

1. d4 {[%clk 01:30:51]} {[%emt 00:00:08]} Nf6 {[%clk 01:30:56]} {[%emt
00:00:05]} 2. c4 {[%clk 01:31:15]} {[%emt 00:00:05]} g6 {[%clk 01:31:22]}
{[%emt 00:00:04]} 3. Nc3 {[%clk 01:31:40]} {[%emt 00:00:04]} Bg7 {[%clk
01:31:49]} {[%emt 00:00:04]} 4. e4 {[%clk 01:32:04]} {[%emt 00:00:06]} d6
{[%clk 01:32:13]} {[%emt 00:00:06]} 5. Be2 {[%clk 01:32:23]} {[%emt 00:00:10]}
O-O {[%clk 01:32:38]} {[%emt 00:00:06]} 6. Be3 {[%clk 01:32:38]} {[%emt
00:00:14]} Na6 {[%clk 01:32:32]} {[%emt 00:00:36]} 7. Qc2 {[%clk 01:21:51]}
{[%emt 00:11:17]} c5 {[%clk 01:24:39]} {[%emt 00:08:23]} 8. d5 {[%clk
01:14:51]} {[%emt 00:07:30]} e6 {[%clk 01:20:13]} {[%emt 00:04:56]} 9. Nf3
{[%clk 01:07:23]} {[%emt 00:07:57]} exd5 {[%clk 01:18:38]} {[%emt 00:02:05]} 10.
cxd5 {[%clk 01:07:05]} {[%emt 00:00:47]} Nc7 {[%clk 01:15:52]} {[%emt
00:03:18]} 11. O-O {[%clk 01:06:23]} {[%emt 00:01:11]} a6 {[%clk 01:14:39]}
{[%emt 00:01:44]} 12. a4 {[%clk 01:05:29]} {[%emt 00:01:24]} b6 {[%clk
01:11:04]} {[%emt 00:04:04]} 13. h3 {[%clk 00:54:42]} {[%emt 00:11:17]} Re8
{[%clk 01:08:56]} {[%emt 00:02:38]} 14. Rad1 {[%clk 00:46:31]} {[%emt
00:08:41]} Bb7 {[%clk 00:51:20]} {[%emt 00:18:07]} 15. Bg5 {[%clk 00:38:57]}
{[%emt 00:08:04]} Qd7 {[%clk 00:49:56]} {[%emt 00:01:54]} 16. Rfe1 {[%clk
00:32:28]} {[%emt 00:07:00]} b5 {[%clk 00:47:57]} {[%emt 00:02:28]} 17. Bf1
{[%clk 00:32:08]} {[%emt 00:00:50]} b4 {[%clk 00:46:21]} {[%emt 00:02:07]} 18.
Nb1 {[%clk 00:30:42]} {[%emt 00:01:55]} h6 {[%clk 00:33:18]} {[%emt 00:13:33]}
19. Bc1 {[%clk 00:25:19]} {[%emt 00:05:53]} Re7 {[%clk 00:32:40]} {[%emt
00:01:08]} 20. b3 {[%clk 00:25:09]} {[%emt 00:00:40]} Rae8 {[%clk 00:32:11]}
{[%emt 00:00:59]} 21. Nbd2 {[%clk 00:24:14]} {[%emt 00:01:25]} a5 {[%clk
00:26:56]} {[%emt 00:05:46]} 22. Bd3 {[%clk 00:23:14]} {[%emt 00:01:29]} Ba6
{[%clk 00:19:36]} {[%emt 00:07:52]} 23. Bxa6 {[%clk 00:20:07]} {[%emt
00:03:36]} Nxa6 {[%clk 00:20:03]} {[%emt 00:00:03]} 24. Bb2 {[%clk 00:17:46]}
{[%emt 00:02:51]} Qd8 {[%clk 00:19:23]} {[%emt 00:01:10]} 25. Re3 {[%clk
00:14:08]} {[%emt 00:04:09]} Nb8 {[%clk 00:14:48]} {[%emt 00:05:05]} 26. Rde1
{[%clk 00:13:48]} {[%emt 00:00:50]} Nbd7 {[%clk 00:14:20]} {[%emt 00:00:58]} 27.
Nc4 {[%clk 00:13:43]} {[%emt 00:00:34]} Nf8 {[%clk 00:12:31]} {[%emt 00:02:18]}
28. Qb1 {[%clk 00:12:01]} {[%emt 00:02:12]} N8h7 {[%clk 00:11:36]} {[%emt
00:01:26]} 29. Qa1 {[%clk 00:12:05]} {[%emt 00:00:25]} Nh5 {[%clk 00:10:14]}
{[%emt 00:01:52]} 30. Bxg7 {[%clk 00:12:17]} {[%emt 00:00:19]} Nxg7 {[%clk
00:10:42]} {[%emt 00:00:02]} 31. Qb2 {[%clk 00:10:34]} {[%emt 00:02:12]} f6
{[%clk 00:07:12]} {[%emt 00:04:01]} 32. Nh2 {[%clk 00:07:21]} {[%emt 00:03:42]}
h5 {[%clk 00:06:16]} {[%emt 00:01:27]} 33. f4 {[%clk 00:06:31]} {[%emt
00:01:20]} g5 {[%clk 00:04:07]} {[%emt 00:02:39]} 34. Qf2 {[%clk 00:05:24]}
{[%emt 00:01:37]} Kf7 {[%clk 00:02:17]} {[%emt 00:02:20]} 35. fxg5 {[%clk
00:02:16]} {[%emt 00:03:38]} Nxg5 {[%clk 00:02:44]} {[%emt 00:00:02]} 36. e5
{[%clk 00:02:23]} {[%emt 00:00:24]} f5 {[%clk 00:01:47]} {[%emt 00:01:27]} 37.
h4 {[%clk 00:01:47]} {[%emt 00:01:06]} Nh7 {[%clk 00:00:37]} {[%emt 00:01:40]}
38. Nxd6+ {[%clk 00:02:10]} {[%emt 00:00:07]} Kg8 {[%clk 00:00:58]} {[%emt
00:00:09]} 39. Nxe8 {[%clk 00:02:21]} {[%emt 00:00:19]} Rxe8 {[%clk 00:01:08]}
{[%emt 00:00:20]} 40. d6 {[%clk 00:01:37]} {[%emt 00:01:14]} Nf8 {[%clk
00:01:32]} {[%emt 00:00:06]} 41. Nf3 {[%clk 00:00:44]} {[%emt 00:01:24]} Nfe6
{[%clk 00:01:37]} {[%emt 00:00:25]} 42. Ng5 {[%clk 00:07:26]} {[%emt 00:08:47]}
Nxg5 {[%clk 00:15:30]} {[%emt 00:01:37]} 43. hxg5 {[%clk 00:07:50]} {[%emt
00:00:06]} Re6 {[%clk 00:15:36]} {[%emt 00:00:24]} 44. Qf4 {[%clk 00:07:49]}
{[%emt 00:00:31]} Rg6 {[%clk 00:15:46]} {[%emt 00:00:21]} 45. e6 {[%clk
00:06:41]} {[%emt 00:01:37]} Qe8 {[%clk 00:15:03]} {[%emt 00:01:14]} 46. d7
{[%clk 00:06:34]} {[%emt 00:00:37]} 1-0

[Event "Polofinale MCR junioru 2023"]
[Site "Czech Republic"]
[Date "2023.11.17"]
[Round "8.18"]
[White "Hozda, Max"]
[Black "Pelc, Adam"]
[Result "1/2-1/2"]
[TimeControl "90 min per 40 moves + 15 min + 30 sec / move from move 1"]
[WhiteFideId "23725958"]
[BlackFideId "23723033"]
[WhiteElo "2045"]
[BlackElo "1856"]

1. Nf3 {[%clk 01:30:56]} {[%emt 00:00:03]} d5 {[%clk 01:30:30]} {[%emt
00:00:30]} 2. c4 {[%clk 01:29:00]} {[%emt 00:02:27]} e6 {[%clk 01:25:43]}
{[%emt 00:05:17]} 3. e3 {[%clk 01:27:40]} {[%emt 00:01:50]} Nf6 {[%clk
01:25:53]} {[%emt 00:00:20]} 4. b3 {[%clk 01:26:33]} {[%emt 00:01:38]} Nbd7
{[%clk 01:22:48]} {[%emt 00:03:34]} 5. Bb2 {[%clk 01:26:50]} {[%emt 00:00:13]}
Bd6 {[%clk 01:22:15]} {[%emt 00:01:04]} 6. d4 {[%clk 01:26:07]} {[%emt
00:01:12]} c6 {[%clk 01:22:02]} {[%emt 00:00:43]} 7. Bd3 {[%clk 01:25:08]}
{[%emt 00:01:29]} O-O {[%clk 01:21:13]} {[%emt 00:01:19]} 8. O-O {[%clk
01:25:27]} {[%emt 00:00:11]} Re8 {[%clk 01:18:47]} {[%emt 00:02:55]} 9. Nc3
{[%clk 01:20:58]} {[%emt 00:04:59]} e5 {[%clk 01:15:09]} {[%emt 00:04:08]} 10.
dxe5 {[%clk 01:20:29]} {[%emt 00:00:59]} Nxe5 {[%clk 01:15:21]} {[%emt
00:00:19]} 11. Nxe5 {[%clk 01:20:14]} {[%emt 00:00:45]} Bxe5 {[%clk 01:15:33]}
{[%emt 00:00:18]} 12. h3 {[%clk 01:16:17]} {[%emt 00:04:27]} dxc4 {[%clk
00:56:55]} {[%emt 00:19:08]} 13. Bxc4 {[%clk 01:12:28]} {[%emt 00:04:19]} Be6
{[%clk 00:56:53]} {[%emt 00:00:32]} 14. Qe2 {[%clk 01:09:55]} {[%emt 00:03:03]}
Bxc4 {[%clk 00:56:09]} {[%emt 00:01:14]} 15. Qxc4 {[%clk 01:09:05]} {[%emt
00:01:21]} Qd2 {[%clk 00:56:22]} {[%emt 00:00:17]} 16. Rab1 {[%clk 01:05:18]}
{[%emt 00:04:17]} b5 {[%clk 00:33:50]} {[%emt 00:23:02]} 17. Qc5 {[%clk
01:00:12]} {[%emt 00:05:36]} Nd7 {[%clk 00:14:19]} {[%emt 00:20:01]} 18. Qxc6
{[%clk 00:57:58]} {[%emt 00:02:45]} Rec8 {[%clk 00:13:20]} {[%emt 00:01:29]} 19.
Qxb5 {[%clk 00:49:28]} {[%emt 00:09:00]} a6 {[%clk 00:13:26]} {[%emt 00:00:24]}
20. Ne4 {[%clk 00:47:59]} {[%emt 00:01:59]} axb5 {[%clk 00:12:01]} {[%emt
00:01:56]} 21. Nxd2 {[%clk 00:47:08]} {[%emt 00:01:21]} Rxa2 {[%clk 00:12:23]}
{[%emt 00:00:08]} 22. Bxe5 {[%clk 00:46:46]} {[%emt 00:00:51]} Nxe5 {[%clk
00:12:44]} {[%emt 00:00:09]} 23. Rfc1 {[%clk 00:39:40]} {[%emt 00:07:37]} Rd8
{[%clk 00:10:32]} {[%emt 00:02:43]} 24. Nf3 {[%clk 00:34:54]} {[%emt 00:05:16]}
Nxf3+ {[%clk 00:10:19]} {[%emt 00:00:43]} 25. gxf3 {[%clk 00:35:13]} {[%emt
00:00:10]} g6 {[%clk 00:10:15]} {[%emt 00:00:34]} 26. Rd1 {[%clk 00:32:20]}
{[%emt 00:03:24]} Rdd2 {[%clk 00:08:32]} {[%emt 00:02:12]} 27. Rxd2 {[%clk
00:29:09]} {[%emt 00:03:40]} Rxd2 {[%clk 00:08:57]} {[%emt 00:00:05]} 28. b4
{[%clk 00:28:06]} {[%emt 00:01:34]} Kf8 {[%clk 00:08:08]} {[%emt 00:01:19]} 29.
Kg2 {[%clk 00:25:07]} {[%emt 00:03:28]} 1/2-1/2

[Event "Polofinale MCR junioru 2023"]
[Site "Czech Republic"]
[Date "2023.11.17"]
[Round "8.19"]
[White "Zezula, Jakub"]
[Black "Mrazek, Roman"]
[Result "1-0"]
[TimeControl "90 min per 40 moves + 15 min + 30 sec / move from move 1"]
[WhiteFideId "23723203"]
[BlackFideId "23707062"]
[WhiteElo "2002"]
[BlackElo "1866"]

1. e4 {[%clk 01:30:56]} {[%emt 00:00:04]} c5 {[%clk 01:30:46]} {[%emt
00:00:15]} 2. Nf3 {[%clk 01:31:16]} {[%emt 00:00:09]} e6 {[%clk 01:31:12]}
{[%emt 00:00:04]} 3. d4 {[%clk 01:31:40]} {[%emt 00:00:06]} cxd4 {[%clk
01:31:20]} {[%emt 00:00:22]} 4. Nxd4 {[%clk 01:32:03]} {[%emt 00:00:07]} Nc6
{[%clk 01:31:47]} {[%emt 00:00:03]} 5. Nc3 {[%clk 01:32:19]} {[%emt 00:00:13]}
Qc7 {[%clk 01:32:11]} {[%emt 00:00:07]} 6. Be3 {[%clk 01:32:01]} {[%emt
00:00:47]} a6 {[%clk 01:32:36]} {[%emt 00:00:06]} 7. Qf3 {[%clk 01:29:32]}
{[%emt 00:02:58]} b5 {[%clk 01:29:23]} {[%emt 00:03:44]} 8. O-O-O {[%clk
01:20:05]} {[%emt 00:09:57]} Bb7 {[%clk 01:27:43]} {[%emt 00:02:10]} 9. Nxc6
{[%clk 01:13:38]} {[%emt 00:06:57]} Qxc6 {[%clk 01:23:07]} {[%emt 00:05:05]} 10.
Bd3 {[%clk 01:09:52]} {[%emt 00:04:17]} Nf6 {[%clk 01:21:16]} {[%emt 00:02:21]}
11. Bd4 {[%clk 00:58:15]} {[%emt 00:12:07]} Be7 {[%clk 01:17:46]} {[%emt
00:04:00]} 12. a3 {[%clk 00:56:11]} {[%emt 00:02:35]} O-O {[%clk 01:07:07]}
{[%emt 00:11:09]} 13. g4 {[%clk 00:54:29]} {[%emt 00:02:11]} d6 {[%clk
01:03:56]} {[%emt 00:03:41]} 14. Qg3 {[%clk 00:43:42]} {[%emt 00:11:18]} Nd7
{[%clk 01:00:16]} {[%emt 00:04:09]} 15. Rhg1 {[%clk 00:33:42]} {[%emt
00:10:31]} Bf6 {[%clk 00:38:41]} {[%emt 00:22:05]} 16. Bxf6 {[%clk 00:32:57]}
{[%emt 00:01:17]} Nxf6 {[%clk 00:39:02]} {[%emt 00:00:09]} 17. Qh4 {[%clk
00:23:22]} {[%emt 00:10:04]} Nd7 {[%clk 00:38:59]} {[%emt 00:00:32]} 18. Nd5
{[%clk 00:17:06]} {[%emt 00:06:47]} Qc5 {[%clk 00:33:16]} {[%emt 00:05:57]} 19.
e5 {[%clk 00:14:55]} {[%emt 00:02:57]} h6 {[%clk 00:30:59]} {[%emt 00:02:46]}
20. Ne7+ {[%clk 00:06:50]} {[%emt 00:08:37]} Kh8 {[%clk 00:31:24]} {[%emt
00:00:05]} 21. g5 {[%clk 00:06:55]} {[%emt 00:00:25]} Nxe5 {[%clk 00:27:19]}
{[%emt 00:04:34]} 22. gxh6 {[%clk 00:07:04]} {[%emt 00:00:22]} g5 {[%clk
00:26:31]} {[%emt 00:01:18]} 23. Rxg5 {[%clk 00:06:43]} {[%emt 00:00:51]} f6
{[%clk 00:25:29]} {[%emt 00:01:29]} 24. Rxe5 {[%clk 00:02:18]} {[%emt
00:04:59]} dxe5 {[%clk 00:25:10]} {[%emt 00:00:49]} 25. Ng6+ {[%clk 00:02:29]}
{[%emt 00:00:19]} Kg8 {[%clk 00:25:05]} {[%emt 00:00:34]} 26. h7+ {[%clk
00:02:20]} {[%emt 00:00:39]} 1-0